[Event "Early-Titled-Tuesday-Blitz-May-07-2024"]
[Site "Chess.com"]
[Date "2024.05.07"]
[Round "6"]
[White "imdvb6307"]
[Black "Ryukchess81"]
[Result "0-1"]
[WhiteElo "2527"]
[BlackElo "2397"]
[TimeControl "180+1"]
[EndTime "9:12:13 PDT"]
[Termination "Ryukchess81 won on time"]

1. d4 {[%clk 0:03:00.9]} 1... d5 {[%clk 0:03:00]} 2. Nf3 {[%clk 0:03:00.8]} 2...
Nf6 {[%clk 0:02:59.4]} 3. e3 {[%clk 0:03:00.8]} 3... Bg4 {[%clk 0:02:57.6]} 4.
c4 {[%clk 0:02:58.5]} 4... c6 {[%clk 0:02:58]} 5. Nc3 {[%clk 0:02:40.6]} 5... e6
{[%clk 0:02:57.3]} 6. h3 {[%clk 0:02:40.9]} 6... Bh5 {[%clk 0:02:56.7]} 7. Qb3
{[%clk 0:02:39.5]} 7... Qb6 {[%clk 0:02:56.2]} 8. g4 {[%clk 0:02:39.6]} 8... Bg6
{[%clk 0:02:55.6]} 9. Ne5 {[%clk 0:02:39.8]} 9... Nbd7 {[%clk 0:02:55.3]} 10.
Nxg6 {[%clk 0:02:36.2]} 10... hxg6 {[%clk 0:02:56.2]} 11. Bg2 {[%clk 0:02:26.6]}
11... dxc4 {[%clk 0:02:50.6]} 12. Qxc4 {[%clk 0:02:25.7]} 12... Bd6 {[%clk
0:02:50.5]} 13. O-O {[%clk 0:01:55.5]} 13... Nxg4 {[%clk 0:02:39.7]} 14. Ne4
{[%clk 0:01:38.4]} 14... Bh2+ {[%clk 0:02:36.3]} 15. Kh1 {[%clk 0:01:38.2]}
15... Qc7 {[%clk 0:02:36.6]} 16. f4 {[%clk 0:01:34.1]} 16... Ndf6 {[%clk
0:02:00.6]} 17. Nxf6+ {[%clk 0:01:33.5]} 17... gxf6 {[%clk 0:02:00.9]} 18. Bf3
{[%clk 0:01:20.4]} 18... Rxh3 {[%clk 0:01:42.3]} 19. Bxg4 {[%clk 0:01:19.9]}
19... Rh4 {[%clk 0:01:42.5]} 20. Bxe6 {[%clk 0:01:06.9]} 20... Kf8 {[%clk
0:01:37.7]} 21. Kg2 {[%clk 0:01:01.1]} 21... Kg7 {[%clk 0:01:36.3]} 22. Bxf7
{[%clk 0:00:58]} 22... Qxf7 {[%clk 0:01:35.6]} 23. Qxf7+ {[%clk 0:00:57.9]}
23... Kxf7 {[%clk 0:01:36.5]} 24. Rh1 {[%clk 0:00:57.8]} 24... Rah8 {[%clk
0:01:37.2]} 25. Bd2 {[%clk 0:00:58.2]} 25... Rg4+ {[%clk 0:01:29]} 26. Kf3
{[%clk 0:00:54.3]} 26... f5 {[%clk 0:01:28.8]} 27. Ke2 {[%clk 0:00:38.8]} 27...
Rg2+ {[%clk 0:01:24.6]} 28. Kd3 {[%clk 0:00:38.6]} 28... Ke6 {[%clk 0:01:23.5]}
29. Bc3 {[%clk 0:00:37.9]} 29... Kd5 {[%clk 0:01:21.4]} 30. Rae1 {[%clk
0:00:35.8]} 30... Rh3 {[%clk 0:01:13]} 31. Re2 {[%clk 0:00:35.4]} 31... Rxe2
{[%clk 0:01:04.2]} 32. Kxe2 {[%clk 0:00:35.5]} 32... Ke4 {[%clk 0:01:04.2]} 33.
Bd2 {[%clk 0:00:36.1]} 33... Rh5 {[%clk 0:01:01.1]} 34. b4 {[%clk 0:00:32.5]}
34... Bg3 {[%clk 0:00:59.7]} 35. Rg1 {[%clk 0:00:13.3]} 35... Rh2+ {[%clk
0:00:59.7]} 36. Kd1 {[%clk 0:00:13.2]} 36... Rh3 {[%clk 0:00:48.2]} 37. Rg2
{[%clk 0:00:12.7]} 37... Kf3 {[%clk 0:00:43.1]} 38. Rg1 {[%clk 0:00:12.2]} 38...
Rh6 {[%clk 0:00:40.5]} 39. Kc2 {[%clk 0:00:12.3]} 39... Bf2 {[%clk 0:00:39.7]}
40. Rb1 {[%clk 0:00:11.9]} 40... Bxe3 {[%clk 0:00:39.2]} 41. Rb3 {[%clk
0:00:11.5]} 41... Rh2 {[%clk 0:00:33.9]} 42. Rxe3+ {[%clk 0:00:10.7]} 42... Kxf4
{[%clk 0:00:34.3]} 43. Re2+ {[%clk 0:00:09.8]} 43... Kg3 {[%clk 0:00:33.4]} 44.
Bf4+ {[%clk 0:00:10]} 44... Kxf4 {[%clk 0:00:33.8]} 45. Rxh2 {[%clk 0:00:10.6]}
45... g5 {[%clk 0:00:34.7]} 46. Kd3 {[%clk 0:00:10.6]} 46... Kg3 {[%clk
0:00:34.5]} 47. Rh5 {[%clk 0:00:10.8]} 47... Kg4 {[%clk 0:00:34.3]} 48. Rh8
{[%clk 0:00:10.7]} 48... f4 {[%clk 0:00:35.2]} 49. Ke2 {[%clk 0:00:11]} 49...
Kg3 {[%clk 0:00:35]} 50. Rh1 {[%clk 0:00:05.4]} 50... Kg2 {[%clk 0:00:28.8]} 51.
Rf1 {[%clk 0:00:02.4]} 51... b5 {[%clk 0:00:22.5]} 52. Rf3 {[%clk 0:00:02.3]}
52... a6 {[%clk 0:00:19.9]} 53. a3 {[%clk 0:00:01.8]} 53... Kh2 {[%clk 0:00:14]}
54. Kf2 {[%clk 0:00:01.5]} 54... g4 {[%clk 0:00:13.9]} 55. Rxf4 {[%clk
0:00:01.1]} 55... g3+ {[%clk 0:00:14.8]} 56. Ke3 {[%clk 0:00:01.3]} 56... g2
{[%clk 0:00:15.3]} 57. Rh4+ {[%clk 0:00:01.6]} 57... Kg3 {[%clk 0:00:14.5]} 0-1

[Event "Early-Titled-Tuesday-Blitz-May-07-2024"]
[Site "Chess.com"]
[Date "2024.05.07"]
[Round "6"]
[White "alexrustemov"]
[Black "Chess23Wizzard"]
[Result "1-0"]
[WhiteElo "2947"]
[BlackElo "2681"]
[TimeControl "180+1"]
[EndTime "9:12:15 PDT"]
[Termination "alexrustemov won by resignation"]

1. d4 {[%clk 0:03:00.9]} 1... Nf6 {[%clk 0:02:59.3]} 2. c4 {[%clk 0:03:01.1]}
2... e6 {[%clk 0:02:57.5]} 3. Nf3 {[%clk 0:03:01.5]} 3... b6 {[%clk 0:02:53.9]}
4. a3 {[%clk 0:03:01.2]} 4... Bb7 {[%clk 0:02:53.6]} 5. Nc3 {[%clk 0:03:01.6]}
5... d5 {[%clk 0:02:51.7]} 6. Bg5 {[%clk 0:03:02]} 6... Be7 {[%clk 0:02:49.2]}
7. Bxf6 {[%clk 0:03:02.6]} 7... Bxf6 {[%clk 0:02:49.3]} 8. cxd5 {[%clk
0:03:03.5]} 8... exd5 {[%clk 0:02:48.2]} 9. Qa4+ {[%clk 0:03:03.9]} 9... c6
{[%clk 0:02:44.7]} 10. g3 {[%clk 0:03:04.1]} 10... O-O {[%clk 0:02:44.4]} 11.
Bg2 {[%clk 0:03:04.4]} 11... Nd7 {[%clk 0:02:44.7]} 12. O-O {[%clk 0:03:04.8]}
12... Re8 {[%clk 0:02:44.1]} 13. e3 {[%clk 0:03:01.5]} 13... a6 {[%clk
0:02:39.7]} 14. Rac1 {[%clk 0:02:58.1]} 14... c5 {[%clk 0:02:38]} 15. dxc5
{[%clk 0:02:54]} 15... Nxc5 {[%clk 0:02:35.5]} 16. Qd1 {[%clk 0:02:48.5]} 16...
a5 {[%clk 0:02:18.5]} 17. Re1 {[%clk 0:02:44.5]} 17... Ba6 {[%clk 0:02:14.4]}
18. Bf1 {[%clk 0:02:44.3]} 18... Bb7 {[%clk 0:02:11.4]} 19. Nd4 {[%clk
0:02:33.2]} 19... Bxd4 {[%clk 0:02:09]} 20. exd4 {[%clk 0:02:31.3]} 20... Ne4
{[%clk 0:02:02.7]} 21. f3 {[%clk 0:02:16]} 21... Nxc3 {[%clk 0:01:56.9]} 22.
Rxc3 {[%clk 0:02:15.5]} 22... Rxe1 {[%clk 0:01:50.8]} 23. Qxe1 {[%clk
0:02:16.4]} 23... Qf6 {[%clk 0:01:48.3]} 24. Qe5 {[%clk 0:02:11]} 24... Qxe5
{[%clk 0:01:23.6]} 25. dxe5 {[%clk 0:02:11.9]} 25... d4 {[%clk 0:01:23.8]} 26.
Rd3 {[%clk 0:02:11.3]} 26... Rd8 {[%clk 0:01:23.4]} 27. Kf2 {[%clk 0:01:57.4]}
27... Kf8 {[%clk 0:01:16]} 28. f4 {[%clk 0:01:54.3]} 28... Ke7 {[%clk
0:01:14.5]} 29. Rb3 {[%clk 0:01:51]} 29... Rc8 {[%clk 0:01:02.4]} 30. Bd3 {[%clk
0:01:45.2]} 30... Rc6 {[%clk 0:00:36.7]} 31. Be4 {[%clk 0:01:44.9]} 31... Rc7
{[%clk 0:00:37.2]} 32. Bxb7 {[%clk 0:01:39.9]} 32... Rxb7 {[%clk 0:00:38.1]} 33.
Kf3 {[%clk 0:01:40.4]} 33... f5 {[%clk 0:00:22.4]} 34. exf6+ {[%clk 0:01:38.6]}
34... Kxf6 {[%clk 0:00:23.3]} 35. Ke4 {[%clk 0:01:38.5]} 35... h5 {[%clk
0:00:19.4]} 36. Rb5 {[%clk 0:01:32.9]} 36... Re7+ {[%clk 0:00:19.2]} 37. Kxd4
{[%clk 0:01:31.2]} 37... Re2 {[%clk 0:00:19.8]} 38. h3 {[%clk 0:01:26.9]} 38...
Rg2 {[%clk 0:00:13.6]} 39. Rxb6+ {[%clk 0:01:25.3]} 39... Kf7 {[%clk 0:00:13.6]}
40. g4 {[%clk 0:01:09.5]} 40... hxg4 {[%clk 0:00:04.9]} 41. hxg4 {[%clk
0:01:10.4]} 41... Rxg4 {[%clk 0:00:05.1]} 42. Ke5 {[%clk 0:01:10.3]} 42... Rg2
{[%clk 0:00:05.2]} 43. a4 {[%clk 0:01:05.9]} 43... Rc2 {[%clk 0:00:03.9]} 44. b3
{[%clk 0:00:59.3]} 44... Re2+ {[%clk 0:00:02.8]} 45. Kd4 {[%clk 0:00:58.5]}
45... Rf2 {[%clk 0:00:02.8]} 46. Ke3 {[%clk 0:00:58]} 46... Rb2 {[%clk
0:00:02.8]} 47. f5 {[%clk 0:00:54.9]} 47... Kg8 {[%clk 0:00:02.4]} 48. Kd4
{[%clk 0:00:52]} 48... Kh7 {[%clk 0:00:02.2]} 49. Rb5 {[%clk 0:00:46.6]} 49...
Kh6 {[%clk 0:00:02.3]} 50. Kc5 {[%clk 0:00:46.3]} 50... Kg5 {[%clk 0:00:01.5]}
51. Kb6 {[%clk 0:00:46.9]} 51... Rf2 {[%clk 0:00:01.6]} 52. Rxa5 {[%clk
0:00:42.5]} 52... Rxf5 {[%clk 0:00:02.2]} 53. Rxf5+ {[%clk 0:00:40.4]} 53...
Kxf5 {[%clk 0:00:03.1]} 54. a5 {[%clk 0:00:40.9]} 54... g6 {[%clk 0:00:02.5]}
55. a6 {[%clk 0:00:41]} 55... Kf6 {[%clk 0:00:03.2]} 56. a7 {[%clk 0:00:41]}
56... Kg7 {[%clk 0:00:03.8]} 57. a8=Q {[%clk 0:00:40.8]} 57... Kh7 {[%clk
0:00:04.6]} 58. Kc5 {[%clk 0:00:38.3]} 58... Kg7 {[%clk 0:00:04.9]} 59. Kd5
{[%clk 0:00:38.2]} 59... Kf7 {[%clk 0:00:04.7]} 60. Ke5 {[%clk 0:00:38]} 60...
Kg7 {[%clk 0:00:03.8]} 61. Qb7+ {[%clk 0:00:36.8]} 61... Kh6 {[%clk 0:00:03.5]}
62. Kf6 {[%clk 0:00:37.1]} 1-0

[Event "Early-Titled-Tuesday-Blitz-May-07-2024"]
[Site "Chess.com"]
[Date "2024.05.07"]
[Round "6"]
[White "NikitaShnadrygin"]
[Black "GMAneta"]
[Result "1-0"]
[WhiteElo "2703"]
[BlackElo "2518"]
[TimeControl "180+1"]
[EndTime "9:12:19 PDT"]
[Termination "NikitaShnadrygin won on time"]

1. e4 {[%clk 0:03:00.9]} 1... c5 {[%clk 0:02:50]} 2. Nf3 {[%clk 0:03:00.5]} 2...
Nc6 {[%clk 0:02:49.4]} 3. d4 {[%clk 0:03:00.7]} 3... cxd4 {[%clk 0:02:47.3]} 4.
Nxd4 {[%clk 0:03:01.6]} 4... g6 {[%clk 0:02:47.6]} 5. Nc3 {[%clk 0:03:01.7]}
5... Bg7 {[%clk 0:02:46.7]} 6. Be3 {[%clk 0:03:02.1]} 6... Nf6 {[%clk
0:02:45.3]} 7. Nxc6 {[%clk 0:03:01.1]} 7... bxc6 {[%clk 0:02:43.9]} 8. e5 {[%clk
0:03:01.6]} 8... Nd5 {[%clk 0:02:43.6]} 9. Nxd5 {[%clk 0:03:01.5]} 9... cxd5
{[%clk 0:02:44.5]} 10. Qxd5 {[%clk 0:03:02]} 10... Rb8 {[%clk 0:02:39]} 11.
O-O-O {[%clk 0:03:02]} 11... Qc7 {[%clk 0:02:35.1]} 12. Qc5 {[%clk 0:02:36.2]}
12... Qxe5 {[%clk 0:02:31.6]} 13. Qxe5 {[%clk 0:02:36.1]} 13... Bxe5 {[%clk
0:02:31.9]} 14. Bd4 {[%clk 0:02:32.4]} 14... Bxd4 {[%clk 0:02:29.9]} 15. Rxd4
{[%clk 0:02:33.3]} 15... d6 {[%clk 0:02:27.9]} 16. Ra4 {[%clk 0:02:28.2]} 16...
Ra8 {[%clk 0:02:27.8]} 17. Be2 {[%clk 0:02:22]} 17... Bb7 {[%clk 0:02:22.5]} 18.
f3 {[%clk 0:02:14.2]} 18... O-O {[%clk 0:02:17.3]} 19. Rd1 {[%clk 0:02:04.2]}
19... Rfc8 {[%clk 0:02:05.9]} 20. Ra5 {[%clk 0:01:59.9]} 20... Rc7 {[%clk
0:02:04.8]} 21. Rd4 {[%clk 0:01:57.2]} 21... Bc8 {[%clk 0:02:01.2]} 22. Kd2
{[%clk 0:01:54.8]} 22... Be6 {[%clk 0:01:57.6]} 23. Bd3 {[%clk 0:01:49.2]} 23...
Rb8 {[%clk 0:01:50.4]} 24. b3 {[%clk 0:01:44.2]} 24... d5 {[%clk 0:01:47.4]} 25.
Rda4 {[%clk 0:01:40.2]} 25... Rbb7 {[%clk 0:01:46.5]} 26. f4 {[%clk 0:01:25]}
26... Kg7 {[%clk 0:01:44.9]} 27. Ra6 {[%clk 0:01:18.3]} 27... h5 {[%clk
0:01:40.8]} 28. R4a5 {[%clk 0:01:10]} 28... h4 {[%clk 0:01:34.6]} 29. g3 {[%clk
0:01:09.2]} 29... hxg3 {[%clk 0:01:30.1]} 30. hxg3 {[%clk 0:01:10.1]} 30... Rd7
{[%clk 0:01:27.9]} 31. Rc5 {[%clk 0:01:07.8]} 31... Rdc7 {[%clk 0:01:25.3]} 32.
Rxc7 {[%clk 0:00:53.4]} 32... Rxc7 {[%clk 0:01:26.2]} 33. Ke3 {[%clk 0:00:51.8]}
33... Kf8 {[%clk 0:01:20.5]} 34. Kd4 {[%clk 0:00:50.7]} 34... Ke8 {[%clk
0:01:20.8]} 35. Ra5 {[%clk 0:00:42.3]} 35... Kd7 {[%clk 0:01:19.1]} 36. b4
{[%clk 0:00:35.9]} 36... Rb7 {[%clk 0:01:13.6]} 37. a3 {[%clk 0:00:35.9]} 37...
Kc7 {[%clk 0:01:13.8]} 38. Rc5+ {[%clk 0:00:33.5]} 38... Kd6 {[%clk 0:01:12.9]}
39. c3 {[%clk 0:00:29.6]} 39... Rb6 {[%clk 0:00:59.9]} 40. a4 {[%clk 0:00:29.7]}
40... Rb7 {[%clk 0:00:48]} 41. a5 {[%clk 0:00:27.8]} 41... Rc7 {[%clk
0:00:43.7]} 42. Rxc7 {[%clk 0:00:26.9]} 42... Kxc7 {[%clk 0:00:44.6]} 43. Kc5
{[%clk 0:00:27.5]} 43... Kd7 {[%clk 0:00:39.4]} 44. Bc2 {[%clk 0:00:26]} 44...
f6 {[%clk 0:00:37.7]} 45. Bb3 {[%clk 0:00:24.3]} 45... Kc7 {[%clk 0:00:37.3]}
46. Bxd5 {[%clk 0:00:23.7]} 46... Bc8 {[%clk 0:00:37.8]} 47. b5 {[%clk
0:00:22.6]} 47... g5 {[%clk 0:00:18.9]} 48. b6+ {[%clk 0:00:23.5]} 48... axb6+
{[%clk 0:00:18.5]} 49. axb6+ {[%clk 0:00:24.4]} 49... Kb8 {[%clk 0:00:19.3]} 50.
Kd4 {[%clk 0:00:19.4]} 50... gxf4 {[%clk 0:00:15.9]} 51. gxf4 {[%clk 0:00:20.3]}
51... Bb7 {[%clk 0:00:15.9]} 52. c4 {[%clk 0:00:18.8]} 52... Bc8 {[%clk
0:00:10.9]} 53. c5 {[%clk 0:00:18.8]} 53... e6 {[%clk 0:00:08.7]} 54. Bf3 {[%clk
0:00:18.5]} 54... Ba6 {[%clk 0:00:04.1]} 55. c6 {[%clk 0:00:18]} 55... Kc8
{[%clk 0:00:03.2]} 56. Kc5 {[%clk 0:00:17.5]} 56... Kd8 {[%clk 0:00:03.2]} 57.
Kd6 {[%clk 0:00:17.5]} 57... Bc8 {[%clk 0:00:03.6]} 58. c7+ {[%clk 0:00:17.8]}
58... Ke8 {[%clk 0:00:04]} 59. b7 {[%clk 0:00:17.6]} 59... Bxb7 {[%clk
0:00:04.5]} 60. Bxb7 {[%clk 0:00:18.5]} 1-0

[Event "Early-Titled-Tuesday-Blitz-May-07-2024"]
[Site "Chess.com"]
[Date "2024.05.07"]
[Round "6"]
[White "LimeInTheCoconut"]
[Black "AsaHoffmann"]
[Result "1-0"]
[WhiteElo "2584"]
[BlackElo "2410"]
[TimeControl "180+1"]
[EndTime "9:12:19 PDT"]
[Termination "LimeInTheCoconut won by resignation"]

1. Nf3 {[%clk 0:03:00.9]} 1... d6 {[%clk 0:02:52.8]} 2. d4 {[%clk 0:03:00.1]}
2... Bg4 {[%clk 0:02:49]} 3. Nbd2 {[%clk 0:02:59.3]} 3... Nf6 {[%clk 0:02:45.6]}
4. h3 {[%clk 0:02:58.7]} 4... Bh5 {[%clk 0:02:45.3]} 5. e4 {[%clk 0:02:54.2]}
5... e6 {[%clk 0:02:43.4]} 6. Bd3 {[%clk 0:02:52.5]} 6... c6 {[%clk 0:02:43.3]}
7. Nf1 {[%clk 0:02:49.4]} 7... d5 {[%clk 0:02:41.9]} 8. e5 {[%clk 0:02:47.2]}
8... Nfd7 {[%clk 0:02:41.7]} 9. Ne3 {[%clk 0:02:40]} 9... c5 {[%clk 0:02:37.7]}
10. c3 {[%clk 0:02:39.3]} 10... Nc6 {[%clk 0:02:37.5]} 11. Ng4 {[%clk
0:02:26.5]} 11... cxd4 {[%clk 0:02:27.9]} 12. cxd4 {[%clk 0:02:25.5]} 12... Bb4+
{[%clk 0:02:19.7]} 13. Bd2 {[%clk 0:02:19.7]} 13... Qa5 {[%clk 0:02:19.2]} 14.
a3 {[%clk 0:02:13.9]} 14... Bxd2+ {[%clk 0:02:18.1]} 15. Qxd2 {[%clk 0:02:14.8]}
15... Qxd2+ {[%clk 0:02:15.7]} 16. Kxd2 {[%clk 0:02:15.7]} 16... Na5 {[%clk
0:02:13.8]} 17. Ke2 {[%clk 0:01:49.7]} 17... Rc8 {[%clk 0:02:08.4]} 18. Rac1
{[%clk 0:01:33.1]} 18... Ke7 {[%clk 0:02:08]} 19. b4 {[%clk 0:01:12.5]} 19...
Nc4 {[%clk 0:02:01.6]} 20. Bxc4 {[%clk 0:01:09.1]} 20... dxc4 {[%clk 0:01:59.8]}
21. Ne3 {[%clk 0:00:49.2]} 21... Nb6 {[%clk 0:01:51.4]} 22. g4 {[%clk
0:00:25.7]} 22... Bg6 {[%clk 0:01:50.4]} 23. Nd1 {[%clk 0:00:21.5]} 23... Rhd8
{[%clk 0:01:43.7]} 24. Nc3 {[%clk 0:00:19.8]} 24... f6 {[%clk 0:01:34.9]} 25.
Ke3 {[%clk 0:00:18.2]} 25... a6 {[%clk 0:01:28.2]} 26. h4 {[%clk 0:00:17.9]}
26... Nd5+ {[%clk 0:01:25.7]} 27. Nxd5+ {[%clk 0:00:17.6]} 27... Rxd5 {[%clk
0:01:25.1]} 28. h5 {[%clk 0:00:12.8]} 28... Be8 {[%clk 0:01:23.9]} 29. h6 {[%clk
0:00:10.9]} 29... g6 {[%clk 0:01:22.6]} 30. exf6+ {[%clk 0:00:10.8]} 30... Kxf6
{[%clk 0:01:22.8]} 31. Ne5 {[%clk 0:00:09.1]} 31... Bc6 {[%clk 0:01:15]} 32. f4
{[%clk 0:00:05.9]} 32... Ke7 {[%clk 0:01:09.4]} 33. Rhd1 {[%clk 0:00:05.6]}
33... Ba4 {[%clk 0:01:04.5]} 34. Rd2 {[%clk 0:00:04.6]} 34... Bb3 {[%clk
0:01:04.3]} 35. Rc3 {[%clk 0:00:03.9]} 35... a5 {[%clk 0:01:03.5]} 36. g5 {[%clk
0:00:03.1]} 36... axb4 {[%clk 0:01:02.1]} 37. axb4 {[%clk 0:00:04]} 37... Rb5
{[%clk 0:01:01]} 38. Rb2 {[%clk 0:00:02.5]} 38... Rxb4 {[%clk 0:01:00.8]} 39.
Nxc4 {[%clk 0:00:01.7]} 39... Rcxc4 {[%clk 0:00:58.7]} 40. Rxc4 {[%clk
0:00:01.8]} 40... Rxc4 {[%clk 0:00:57.7]} 41. Rxb3 {[%clk 0:00:02.3]} 41... Rc7
{[%clk 0:00:56.2]} 42. Ke4 {[%clk 0:00:02.8]} 42... Kd6 {[%clk 0:00:49.2]} 43.
Rb6+ {[%clk 0:00:03.4]} 43... Kd7 {[%clk 0:00:48.6]} 44. Ke5 {[%clk 0:00:04]}
44... Ke7 {[%clk 0:00:46.8]} 45. Rxe6+ {[%clk 0:00:04.1]} 45... Kf7 {[%clk
0:00:46.6]} 46. Rb6 {[%clk 0:00:04.3]} 46... Re7+ {[%clk 0:00:46.1]} 47. Kd5
{[%clk 0:00:04.8]} 47... Rd7+ {[%clk 0:00:46.1]} 48. Kc5 {[%clk 0:00:04.8]}
48... Rc7+ {[%clk 0:00:46.2]} 49. Kd5 {[%clk 0:00:04.7]} 49... Rd7+ {[%clk
0:00:46.3]} 50. Kc4 {[%clk 0:00:05.2]} 50... Rc7+ {[%clk 0:00:46.3]} 51. Kd3
{[%clk 0:00:06]} 51... Rd7 {[%clk 0:00:45.4]} 52. Rb5 {[%clk 0:00:05.4]} 52...
Ke6 {[%clk 0:00:45]} 53. Ke4 {[%clk 0:00:04.6]} 53... Rc7 {[%clk 0:00:41.3]} 54.
d5+ {[%clk 0:00:04.8]} 54... Kd6 {[%clk 0:00:40.3]} 55. Rb6+ {[%clk 0:00:05]}
55... Kc5 {[%clk 0:00:39.8]} 56. Rf6 {[%clk 0:00:05.1]} 56... Re7+ {[%clk
0:00:39.6]} 57. Re6 {[%clk 0:00:05.1]} 57... Rxe6+ {[%clk 0:00:39.3]} 58. dxe6
{[%clk 0:00:05.3]} 58... Kd6 {[%clk 0:00:39.4]} 59. f5 {[%clk 0:00:05.2]} 59...
gxf5+ {[%clk 0:00:36.8]} 60. Kxf5 {[%clk 0:00:06.1]} 60... Ke7 {[%clk
0:00:36.5]} 61. g6 {[%clk 0:00:06.4]} 61... hxg6+ {[%clk 0:00:36.2]} 62. Kxg6
{[%clk 0:00:07.3]} 62... Kxe6 {[%clk 0:00:35]} 63. h7 {[%clk 0:00:07.6]} 63...
b5 {[%clk 0:00:34.9]} 64. h8=Q {[%clk 0:00:08.5]} 64... b4 {[%clk 0:00:34.2]}
65. Qb2 {[%clk 0:00:09.4]} 65... b3 {[%clk 0:00:33.7]} 66. Kg5 {[%clk
0:00:10.3]} 66... Kd5 {[%clk 0:00:33.5]} 67. Qxb3+ {[%clk 0:00:10.7]} 67... Kd4
{[%clk 0:00:33.5]} 68. Qg3 {[%clk 0:00:11.4]} 68... Ke4 {[%clk 0:00:33.1]} 69.
Qf4+ {[%clk 0:00:11.3]} 69... Kd3 {[%clk 0:00:32.5]} 70. Kf5 {[%clk 0:00:10.9]}
1-0

[Event "Early-Titled-Tuesday-Blitz-May-07-2024"]
[Site "Chess.com"]
[Date "2024.05.07"]
[Round "6"]
[White "ChessBliss09"]
[Black "Dubs123"]
[Result "1-0"]
[WhiteElo "2218"]
[BlackElo "2390"]
[TimeControl "180+1"]
[EndTime "9:12:28 PDT"]
[Termination "ChessBliss09 won by resignation"]

1. c4 {[%clk 0:03:00.9]} 1... e5 {[%clk 0:02:58.3]} 2. Nc3 {[%clk 0:03:00.7]}
2... Bb4 {[%clk 0:02:57.9]} 3. Nf3 {[%clk 0:02:56.7]} 3... Bxc3 {[%clk
0:02:55.6]} 4. bxc3 {[%clk 0:02:55.5]} 4... d6 {[%clk 0:02:53.6]} 5. d3 {[%clk
0:02:52.6]} 5... Ne7 {[%clk 0:02:49.4]} 6. g3 {[%clk 0:02:52.3]} 6... O-O {[%clk
0:02:48.8]} 7. Bg2 {[%clk 0:02:52.7]} 7... c6 {[%clk 0:02:48.6]} 8. O-O {[%clk
0:02:53]} 8... Be6 {[%clk 0:02:48.1]} 9. Rb1 {[%clk 0:02:51.6]} 9... Qc8 {[%clk
0:02:47.8]} 10. e4 {[%clk 0:02:41.4]} 10... b6 {[%clk 0:02:36.9]} 11. a4 {[%clk
0:02:18.2]} 11... Nd7 {[%clk 0:02:27.1]} 12. Ng5 {[%clk 0:02:12.8]} 12... Nc5
{[%clk 0:02:11.1]} 13. Qh5 {[%clk 0:02:04.2]} 13... h6 {[%clk 0:02:05.7]} 14.
Nxe6 {[%clk 0:02:03.6]} 14... Qxe6 {[%clk 0:02:03]} 15. f4 {[%clk 0:01:53.5]}
15... exf4 {[%clk 0:01:59.2]} 16. gxf4 {[%clk 0:01:47.6]} 16... Nxd3 {[%clk
0:01:58.6]} 17. f5 {[%clk 0:01:46.8]} 17... Qf6 {[%clk 0:01:52.1]} 18. Bd2
{[%clk 0:01:39.7]} 18... Ne5 {[%clk 0:01:47.2]} 19. Kh1 {[%clk 0:01:36]} 19...
Nxc4 {[%clk 0:01:43]} 20. Bf4 {[%clk 0:01:32.8]} 20... Rad8 {[%clk 0:01:40.8]}
21. Rg1 {[%clk 0:01:30.1]} 21... g5 {[%clk 0:01:11.6]} 22. fxg6 {[%clk
0:01:04.7]} 22... fxg6 {[%clk 0:01:10.6]} 23. Bf1 {[%clk 0:00:54.1]} 23... Qxf4
{[%clk 0:00:53.8]} 24. Bxc4+ {[%clk 0:00:52.2]} 24... Kh7 {[%clk 0:00:53.5]} 25.
Qh3 {[%clk 0:00:45.9]} 25... Qxe4+ {[%clk 0:00:51.7]} 26. Qg2 {[%clk 0:00:40.1]}
26... Qxg2+ {[%clk 0:00:43.1]} 27. Rxg2 {[%clk 0:00:39.8]} 27... Nf5 {[%clk
0:00:42.7]} 28. Bd3 {[%clk 0:00:35.2]} 28... d5 {[%clk 0:00:36.1]} 29. Rbg1
{[%clk 0:00:35.6]} 29... Rd6 {[%clk 0:00:35.4]} 30. Re2 {[%clk 0:00:28.6]} 30...
Rf7 {[%clk 0:00:32.7]} 31. Re8 {[%clk 0:00:26.2]} 31... Nh4 {[%clk 0:00:27.6]}
32. Rg4 {[%clk 0:00:22.2]} 32... Nf3 {[%clk 0:00:26.1]} 33. Kg2 {[%clk
0:00:20.7]} 33... Rdf6 {[%clk 0:00:23.3]} 34. Be2 {[%clk 0:00:16.4]} 34... h5
{[%clk 0:00:22.1]} 35. Rg3 {[%clk 0:00:15.2]} 35... Nh4+ {[%clk 0:00:21]} 36.
Kh3 {[%clk 0:00:15.9]} 36... Nf5 {[%clk 0:00:20.8]} 37. Rge3 {[%clk 0:00:16.1]}
37... Nd6 {[%clk 0:00:21.2]} 38. R8e7 {[%clk 0:00:15.7]} 38... Rxe7 {[%clk
0:00:19.2]} 39. Rxe7+ {[%clk 0:00:16.6]} 39... Rf7 {[%clk 0:00:19.3]} 40. Re6
{[%clk 0:00:17]} 40... Ne4 {[%clk 0:00:16.9]} 41. Rxc6 {[%clk 0:00:16.1]} 41...
Rf2 {[%clk 0:00:16.7]} 42. Bd3 {[%clk 0:00:15.8]} 42... Ng5+ {[%clk 0:00:14.5]}
43. Kg3 {[%clk 0:00:14.8]} 43... Rf3+ {[%clk 0:00:14.5]} 44. Kh4 {[%clk
0:00:14.2]} 44... Rxd3 {[%clk 0:00:14.8]} 45. Kxg5 {[%clk 0:00:14.6]} 45... d4
{[%clk 0:00:11.5]} 46. cxd4 {[%clk 0:00:14.1]} 46... Rxd4 {[%clk 0:00:12.4]} 47.
Rc7+ {[%clk 0:00:14.8]} 47... Kg8 {[%clk 0:00:12.3]} 48. Kxg6 {[%clk 0:00:14.1]}
48... Kf8 {[%clk 0:00:12.1]} 49. Rxa7 {[%clk 0:00:13.8]} 49... Rh4 {[%clk
0:00:12.1]} 50. Ra6 {[%clk 0:00:10.7]} 50... Rxh2 {[%clk 0:00:11.8]} 51. Rxb6
{[%clk 0:00:11.1]} 51... h4 {[%clk 0:00:12.7]} 52. a5 {[%clk 0:00:10.2]} 52...
h3 {[%clk 0:00:12.2]} 53. Kf6 {[%clk 0:00:10.5]} 53... Ke8 {[%clk 0:00:11.8]}
54. Rb8+ {[%clk 0:00:09.9]} 54... Kd7 {[%clk 0:00:11.8]} 55. Rh8 {[%clk
0:00:10.5]} 55... Kc6 {[%clk 0:00:11.8]} 56. Kg5 {[%clk 0:00:09.5]} 56... Kb5
{[%clk 0:00:11.8]} 57. Kg4 {[%clk 0:00:10.2]} 57... Rh1 {[%clk 0:00:11.5]} 58.
Rh5+ {[%clk 0:00:09]} 58... Ka6 {[%clk 0:00:10.6]} 59. Rxh3 {[%clk 0:00:08.9]}
59... Rg1+ {[%clk 0:00:09.7]} 60. Rg3 {[%clk 0:00:09]} 60... Kxa5 {[%clk
0:00:10.6]} 61. Rxg1 {[%clk 0:00:08.9]} 1-0